fUSD/lending_fUSD_20241111
["ID","MTS","AMOUNT","RATE_DAILY","PERIOD"]
[341952569,1731321036343,-500.0,0.00014787,2]
[341952571,1731321036352,-500.0,0.00014787,2]
[341952573,1731321036361,-1549.92,0.00014787,2]
[341952575,1731321036370,-1549.92,0.00014787,2]
[341952577,1731321036379,-500.0,0.00014787,2]
[341952579,1731321036388,-500.0,0.00014787,2]
[341952581,1731321036397,-2000.0,0.00014787,2]
[341952583,1731321036407,-2000.0,0.00014787,2]
[341952585,1731321036416,-500.0,0.00014787,2]
[341952587,1731321036425,-500.0,0.00014787,2]
[341952589,1731321036434,-1603.65,0.00014787,2]
[341952591,1731321036443,-1603.65,0.00014787,2]
[341952593,1731321036452,-500.0,0.00014787,2]
[341952595,1731321036461,-500.0,0.00014787,2]
[341952597,1731321036471,-500.0,0.00014787,2]
[341952599,1731321036480,-500.0,0.00014787,2]
[341952601,1731321036489,-640.12,0.00014787,2]
[341952603,1731321036498,-640.12,0.00014787,2]
[341952605,1731321036508,-500.0,0.00014787,2]
[341952607,1731321036517,-500.0,0.00014787,2]
[341952608,1731321036526,-321.3557891,0.00014787,2]
[341952609,1731321036543,-178.6442109,0.00014787,2]
[341952610,1731321036554,-500.0,0.00014787,2]
[341952612,1731321036563,-500.0,0.00014787,2]
[341952614,1731321036572,-500.0,0.00014787,2]
[341952616,1731321036582,-500.0,0.00014787,2]
[341952618,1731321036592,-500.0,0.00014787,2]
[341952620,1731321036601,-500.0,0.00014787,2]
[341952622,1731321036614,-500.0,0.00014787,2]
[341952624,1731321036623,-500.0,0.00014787,2]
[341952626,1731321036633,-563.44,0.00014787,2]
[341952628,1731321036642,-500.0,0.00014787,2]
[341952630,1731321036653,-500.0,0.00014787,2]
[341952632,1731321036662,-500.0,0.00014787,2]
[341952633,1731321036671,-500.0,0.00014787,2]
[341952634,1731321036682,-500.0,0.00014787,2]
[341952635,1731321036691,-500.0,0.00014787,2]
[341952636,1731321036701,-500.0,0.00014787,2]
[341952637,1731321036711,-500.0,0.00014787,2]
[341952638,1731321036720,-500.0,0.00014787,2]
[341952639,1731321036729,-500.0,0.00014787,2]
[341952640,1731321036738,-500.0,0.00014787,2]
[341952641,1731321036747,-500.0,0.00014787,2]
[341952642,1731321036756,-500.0,0.00014787,2]
[341952643,1731321036765,-500.0,0.00014787,2]
[341952644,1731321036774,-589.78,0.00014789,2]
[341952645,1731321036783,-500.0,0.00014789,2]
[341952646,1731321036793,-500.0,0.00014789,2]
[341952647,1731321036805,-500.0,0.00014789,2]
[341952648,1731321036814,-499.93662571,0.00014789,2]
[341952649,1731321036823,-2369.92,0.00014789,2]
[341952650,1731321036833,-500.0,0.00014789,2]
[341952651,1731321036842,-1386.76,0.00014789,2]
[341952652,1731321036851,-500.0,0.00014789,2]
[341952653,1731321036860,-527.78,0.00014789,2]
[341952654,1731321036869,-500.0,0.00014789,2]
[341952655,1731321036879,-500.0,0.00014789,2]
[341952656,1731321036888,-500.0,0.00014789,2]
[341952657,1731321036897,-2974.98,0.00014789,2]
[341952658,1731321036907,-755.97,0.00014789,2]
[341952659,1731321036916,-617.75,0.00014789,2]
[341952660,1731321036926,-759.27,0.00014789,2]
[341952661,1731321036935,-1112.22,0.00014789,2]
[341952662,1731321036944,-500.0,0.00014789,2]
[341952663,1731321036953,-596.88690344,0.00014789,2]
[341952664,1731321036962,-500.0,0.00014789,2]
[341952665,1731321036971,-535.69,0.00014789,2]
[341952666,1731321036981,-500.0,0.00014789,2]
[341952667,1731321036990,-500.0,0.00014789,2]
[341952668,1731321036999,-500.0,0.00014789,2]
[341952669,1731321037009,-801.22,0.00014789,2]
[341952670,1731321037018,-500.0,0.00014789,2]
[341952671,1731321037028,-500.0,0.00014789,2]
[341952672,1731321037037,-396.02,0.00014789,2]
[341952673,1731321037046,-500.0,0.00014789,2]
[341952674,1731321037057,-723.52,0.00014789,2]
[341952675,1731321037067,-548.64,0.00014789,2]
[341952676,1731321037077,-500.0,0.0001479,2]
[341952677,1731321037086,-600.58,0.0001479,2]
[341952678,1731321037095,-608.88,0.0001479,2]
[341952679,1731321037105,-500.0,0.0001479,2]
[341952680,1731321037115,-171.78,0.0001479,2]
[341952681,1731321037124,-500.0,0.0001479,2]
[341952682,1731321037133,-250.0,0.0001479,2]
[341952683,1731321037143,-500.0,0.0001479,2]
[341952684,1731321037152,-500.0,0.0001479,2]
[341952685,1731321037161,-500.0,0.0001479,2]
[341952686,1731321037171,-648.23075565,0.0001479,2]
[341952687,1731321037181,-500.0,0.0001479,2]
[341952688,1731321037191,-500.0,0.0001479,2]
[341952689,1731321037200,-500.0,0.0001479,2]
[341952690,1731321037210,-500.0,0.0001479,2]
[341952691,1731321037219,-195.75,0.0001479,2]
[341952692,1731321037230,-500.0,0.0001479,2]
[341952693,1731321037240,-500.0,0.0001479,2]
[341952694,1731321037250,-500.0,0.0001479,2]
[341952695,1731321037260,-398.4,0.0001479,2]
[341952696,1731321037271,-500.0,0.0001479,2]
[341952697,1731321037281,-500.0,0.0001479,2]
[341952698,1731321037291,-500.0,0.0001479,2]
[341952699,1731321037306,-500.0,0.0001479,2]
[341952700,1731321037316,-500.0,0.0001479,2]
[341952701,1731321037326,-489.47923043,0.0001479,2]
[341952702,1731321037336,-500.0,0.0001479,2]
[341952703,1731321037345,-500.0,0.0001479,2]
[341952704,1731321037355,-500.0,0.0001479,2]
[341952705,1731321037364,-500.0,0.0001479,2]
[341952706,1731321037374,-500.0,0.0001479,2]
[341952707,1731321037383,-500.0,0.0001479,2]
[341952708,1731321037544,-500.0,0.0001479,2]
[341952709,1731321037563,-500.0,0.0001479,2]
[341952710,1731321037572,-500.0,0.0001479,2]
[341952711,1731321037582,-500.0,0.0001479,2]
[341952712,1731321037592,-500.0,0.0001479,2]
[341952713,1731321037601,-453.05882338,0.0001479,2]
[341952714,1731321037611,-500.0,0.0001479,2]
[341952715,1731321037622,-500.0,0.0001479,2]
[341952716,1731321037631,-500.0,0.0001479,2]
[341952717,1731321037640,-307.66,0.0001479,2]
[341952718,1731321037651,-500.0,0.0001479,2]
[341952719,1731321037660,-527.69456696,0.0001479,2]
[341952720,1731321037669,-500.0,0.0001479,2]
[341952721,1731321037678,-119.12409528,0.0001479,2]
[341952726,1731321038180,-310.24010705,0.00014786,2]
[341952727,1731321038403,-189.75989295,0.00014786,2]
[341952728,1731321038413,-556.99,0.00014786,2]
[341952729,1731321038422,-257.91,0.00014789,2]
[341952730,1731321038433,-380.87590472,0.0001479,2]
[341952731,1731321038442,-62.82835233,0.0001479,2]
[341952732,1731321038453,-437.17164767,0.0001479,2]
[341952733,1731321038462,-500.0,0.0001479,2]
[341952734,1731321038471,-500.0,0.0001479,2]
[341952735,1731321038481,-500.0,0.0001479,2]
[341952736,1731321038490,-500.0,0.0001479,2]
[341952737,1731321038499,-27.32835233,0.0001479,2]
[341952738,1731321038531,-321.70212,0.0001479,2]
[341952739,1731321038568,-150.96952767,0.0001479,2]
[341952740,1731321038577,-434.12747233,0.0001479,2]
[341952741,1731321038699,-65.87252767,0.0001479,2]
[341952742,1731321038708,-500.0,0.0001479,2]
[341952743,1731321038716,-435.20989933,0.0001479,2]
[341952744,1731321038728,-64.79010067,0.0001479,2]
[341952745,1731321038737,-300.35565283,0.0001479,2]
[341952746,1731321038746,-145.78556379,0.0001479,2]
[341952750,1731321040181,-557.35,0.00014786,2]
[341952751,1731321040191,-617.16,0.00014786,2]
[341952752,1731321040200,-500.0,0.00014786,2]
[341952753,1731321040209,-500.0,0.00014786,2]
[341952754,1731321040218,-557.35,0.00014789,2]
[341952755,1731321040227,-347.21332694,0.0001479,2]
[341952756,1731321040260,-2587.19110927,0.0001479,2]
[341952757,1731321040269,-500.0,0.0001479,2]
[341952758,1731321040278,-500.0,0.0001479,2]
[341952759,1731321040288,-243.21240269,0.0001479,2]
[341952760,1731321040297,-283.30748804,0.0001479,2]
[341952761,1731321040379,-216.69251196,0.0001479,2]
[341952762,1731321040388,-500.0,0.0001479,2]
[341952763,1731321040397,-404.58348803,0.0001479,2]
[341952765,1731321040408,-95.41651197,0.0001479,2]
[341952767,1731321040417,-183.77856861,0.0001479,2]
[341952769,1731321040426,-40.10716344,0.0001479,2]
[341952770,1731321040437,-388.76,0.0001479,2]
[341952771,1731321040461,-71.13283656,0.0001479,2]
[341952772,1731321040470,-157.97580631,0.0001479,2]
[341952773,1731321040479,-500.0,0.0001479,2]
[341952774,1731321040488,-500.0,0.0001479,2]
[341952775,1731321040497,-500.0,0.0001479,2]
[341952776,1731321040506,-500.0,0.0001479,2]
[341952777,1731321040514,-500.0,0.0001479,2]
[341952778,1731321040523,-500.0,0.0001479,2]
[341952779,1731321040532,-500.0,0.0001479,2]
[341952780,1731321040540,-500.0,0.0001479,2]
[341952781,1731321040549,-500.0,0.0001479,2]
[341952782,1731321040561,-204.58688601,0.0001479,2]
[341952783,1731321040570,-500.0,0.0001479,2]
[341952784,1731321040579,-500.0,0.0001479,2]
[341952785,1731321040587,-500.0,0.0001479,2]
[341952786,1731321040596,-438.65161066,0.0001479,2]
[341952787,1731321040606,-376.8359819,0.0001479,2]
[341952788,1731321040617,-321.06,0.0001479,2]
[341952789,1731321040627,-563.93887101,0.0001479,2]
[341952790,1731321040636,-500.0,0.0001479,2]
[341952791,1731321040646,-500.0,0.0001479,2]
[341952792,1731321040655,-500.0,0.0001479,2]
[341952793,1731321040664,-607.77604285,0.0001479,2]
[341952794,1731321040673,-500.0,0.0001479,2]
[341952795,1731321040682,-500.0,0.0001479,2]
[341952796,1731321040692,-1549.92,0.0001479,2]
[341952797,1731321040701,-500.0,0.0001479,2]
[341952798,1731321040710,-500.0,0.0001479,2]
[341952799,1731321040719,-1125.12199844,0.0001479,2]
[341952811,1731321043273,-219.31,0.00014781,3]
[341952812,1731321043284,-2695.17,0.00014786,2]
[341952813,1731321043294,-874.87800156,0.0001479,2]
[341952814,1731321043307,-500.0,0.0001479,2]
[341952816,1731321043317,-500.0,0.0001479,2]
[341952817,1731321043327,-257.34,0.0001479,2]
[341952819,1731321043337,-516.62891556,0.0001479,2]
[341952820,1731321043346,-500.0,0.0001479,2]
[341952821,1731321043356,-500.0,0.0001479,2]
[341952822,1731321043365,-500.0,0.0001479,2]
[341952823,1731321043375,-1603.65,0.0001479,2]
[341952824,1731321043385,-500.0,0.0001479,2]
[341952825,1731321043395,-500.0,0.0001479,2]
[341952826,1731321043404,-500.0,0.0001479,2]
[341952827,1731321043413,-500.0,0.0001479,2]
[341952828,1731321043422,-255.79,0.0001479,2]
[341952829,1731321043431,-500.0,0.0001479,2]
[341952830,1731321043440,-500.0,0.0001479,2]
[341952831,1731321043449,-500.0,0.0001479,2]
[341952832,1731321043458,-640.12,0.0001479,2]
[341952833,1731321043467,-688.99,0.0001479,2]
[341952834,1731321043477,-415.46747532,0.0001479,2]
[341952835,1731321043485,-165.04874013,0.0001479,2]
[341952836,1731321043495,-500.0,0.0001479,2]
[341952837,1731321043504,-500.0,0.0001479,2]
[341952838,1731321043512,-500.0,0.0001479,2]
[341952839,1731321043521,-500.0,0.0001479,2]
[341952840,1731321043530,-518.90573089,0.0001479,2]
[341952841,1731321043539,-500.0,0.0001479,2]
[341952842,1731321043549,-500.0,0.0001479,2]
[341952843,1731321043562,-500.0,0.0001479,2]
[341952844,1731321043571,-504.43569928,0.0001479,2]
[341952845,1731321043580,-500.0,0.0001479,2]
[341952846,1731321043589,-500.0,0.0001479,2]
[341952847,1731321043598,-500.0,0.0001479,2]
[341952848,1731321043611,-500.0,0.0001479,2]
[341952849,1731321043621,-500.0,0.0001479,2]
[341952850,1731321043630,-500.0,0.0001479,2]
[341952851,1731321043639,-500.0,0.0001479,2]
[341952852,1731321043648,-500.0,0.0001479,2]
[341952853,1731321043658,-500.0,0.0001479,2]
[341952854,1731321043667,-500.0,0.0001479,2]
[341952855,1731321043676,-500.0,0.0001479,2]
[341952856,1731321043688,-500.0,0.0001479,2]
[341952857,1731321043696,-500.0,0.0001479,2]
[341952858,1731321043705,-500.0,0.0001479,2]
[341952859,1731321043715,-232.86341947,0.0001479,2]
[341952860,1731321043724,-503.94077945,0.0001479,2]
[341952861,1731321043733,-500.0,0.0001479,2]
[341952862,1731321043742,-221.53438082,0.0001479,2]
[341952863,1731321043751,-190.81231716,0.0001479,2]
[341952864,1731321043760,-1513.68,0.0001479,2]
[341952865,1731321043770,-450.36,0.0001479,2]
[341952866,1731321043779,-225.65411512,0.0001479,2]
[341952867,1731321043788,-500.0,0.0001479,2]
[341952868,1731321043797,-500.0,0.0001479,2]
[341952869,1731321043810,-351.74,0.0001479,2]
[341952871,1731321043819,-500.0,0.0001479,2]
[341952873,1731321043828,-507.25345605,0.0001479,2]
[341952875,1731321043837,-500.0,0.0001479,2]
[341952877,1731321043847,-486.42215075,0.0001479,2]
[341952879,1731321043856,-245.42536362,0.0001479,2]
[341952881,1731321043865,-600.22,0.0001479,2]
[341952883,1731321043874,-500.0,0.0001479,2]
[341952885,1731321043884,-500.0,0.0001479,2]
[341952887,1731321043893,-500.0,0.0001479,2]
[341952889,1731321043902,-500.0,0.0001479,2]
[341952891,1731321043911,-500.0,0.0001479,2]
[341952893,1731321043920,-500.0,0.0001479,2]
[341952895,1731321043929,-500.0,0.0001479,2]
[341952897,1731321043939,-229.79,0.0001479,2]
[341952899,1731321043948,-500.0,0.0001479,2]
[341952901,1731321043957,-391.5485585,0.0001479,2]
[341952903,1731321043967,-500.0,0.0001479,2]
[341952905,1731321043976,-500.0,0.0001479,2]
[341952907,1731321043985,-1996.33,0.0001479,2]
[341952909,1731321043994,-500.0,0.0001479,2]
[341952911,1731321044003,-500.0,0.0001479,2]
[341952913,1731321044011,-500.0,0.0001479,2]
[341952914,1731321044021,-500.0,0.0001479,2]
[341952916,1731321044030,-760.61,0.0001479,2]
[341952918,1731321044039,-1589.0,0.0001479,2]
[341952920,1731321044049,-500.0,0.0001479,2]
[341952923,1731321044061,-501.59987324,0.0001479,2]
[341952925,1731321044071,-500.0,0.0001479,2]
[341952927,1731321044080,-500.0,0.0001479,2]
[341952929,1731321044091,-1456.1,0.0001479,2]
[341952930,1731321044101,-500.0,0.0001479,2]
[341952932,1731321044110,-500.0,0.0001479,2]
[341952934,1731321044119,-443.90069455,0.0001479,2]
[341952936,1731321044129,-554.59,0.0001479,2]
[341952938,1731321044138,-500.0,0.0001479,2]
[341952940,1731321044147,-500.0,0.0001479,2]
[341952942,1731321044157,-500.0,0.0001479,2]
[341952944,1731321044168,-500.0,0.0001479,2]
[341952946,1731321044177,-699.45,0.0001479,2]
[341952948,1731321044187,-724.2,0.0001479,2]
[341952950,1731321044196,-500.0,0.0001479,2]
[341952952,1731321044205,-500.0,0.0001479,2]
[341952953,1731321044214,-503.1,0.0001479,2]
[341952954,1731321044224,-500.0,0.0001479,2]
[341952955,1731321044233,-644.85757209,0.0001479,2]
[341952956,1731321044242,-500.0,0.0001479,2]
[341952957,1731321044252,-500.0,0.0001479,2]
[341952958,1731321044261,-500.0,0.0001479,2]
[341952959,1731321044270,-500.0,0.0001479,2]
[341952960,1731321044280,-500.0,0.0001479,2]
[341952961,1731321044289,-500.0,0.0001479,2]
[341952962,1731321044298,-500.0,0.0001479,2]
[341952963,1731321044310,-500.0,0.0001479,2]
[341952964,1731321044320,-809.93,0.0001479,2]
[341952965,1731321044330,-511.72805837,0.0001479,2]
[341952966,1731321044340,-500.0,0.0001479,2]
[341952967,1731321044349,-500.0,0.0001479,2]
[341952968,1731321044359,-500.0,0.0001479,2]
[341952969,1731321044368,-500.0,0.0001479,2]
[341952970,1731321044378,-500.0,0.0001479,2]
[341952971,1731321044387,-460.24014816,0.0001479,2]
[341952972,1731321044396,-502.35616862,0.0001479,2]
[341952973,1731321044405,-500.0,0.0001479,2]
[341952974,1731321044415,-500.0,0.0001479,2]
[341952975,1731321044424,-500.0,0.0001479,2]
[341952976,1731321044433,-500.0,0.0001479,2]
[341952977,1731321044442,-1087.46,0.0001479,2]
[341952978,1731321044452,-500.0,0.0001479,2]
[341952979,1731321044463,-500.0,0.0001479,2]
[341952980,1731321044472,-500.0,0.0001479,2]
[341952981,1731321044482,-500.0,0.0001479,2]
[341952982,1731321044491,-500.0,0.0001479,2]
[341952983,1731321044500,-500.0,0.0001479,2]
[341952984,1731321044509,-500.0,0.0001479,2]
[341952985,1731321044518,-500.0,0.0001479,2]
[341952986,1731321044528,-442.89723494,0.0001479,2]
[341952987,1731321044537,-363.59,0.0001479,2]
[341952988,1731321044546,-500.0,0.0001479,2]
[341952989,1731321044558,-500.0,0.0001479,2]
[341952990,1731321044568,-500.0,0.0001479,2]
[341952991,1731321044577,-500.0,0.0001479,2]
[341952992,1731321044586,-500.0,0.0001479,2]
[341952993,1731321044596,-500.0,0.0001479,2]
[341952994,1731321044607,-500.0,0.0001479,2]
[341952995,1731321044619,-500.0,0.0001479,2]
[341952996,1731321044629,-500.0,0.0001479,2]
[341952997,1731321044639,-500.0,0.0001479,2]
[341952998,1731321044649,-500.0,0.0001479,2]
[341952999,1731321044658,-500.0,0.0001479,2]
[341953000,1731321044668,-500.0,0.0001479,2]
[341953001,1731321044677,-565.24,0.0001479,2]
[341953002,1731321044688,-500.0,0.0001479,2]
[341953003,1731321044697,-500.0,0.0001479,2]
[341953004,1731321044707,-500.0,0.0001479,2]
[341953005,1731321044716,-500.0,0.0001479,2]
[341953006,1731321044725,-500.0,0.0001479,2]
[341953007,1731321044734,-642.23,0.0001479,2]
[341953008,1731321044744,-403.3011083,0.0001479,2]
[341953009,1731321044754,-500.0,0.0001479,2]
[341953010,1731321044763,-500.0,0.0001479,2]
[341953011,1731321044773,-522.95605043,0.0001479,2]
[341953012,1731321044783,-500.0,0.0001479,2]
[341953013,1731321044792,-500.0,0.0001479,2]
[341953014,1731321044802,-500.0,0.0001479,2]
[341953015,1731321044813,-500.0,0.0001479,2]
[341953016,1731321044822,-500.0,0.0001479,2]
[341953017,1731321044831,-500.0,0.0001479,2]
[341953018,1731321044841,-500.0,0.0001479,2]
[341953019,1731321044850,-500.0,0.0001479,2]
[341953020,1731321044860,-500.0,0.0001479,2]
[341953021,1731321044869,-500.0,0.0001479,2]
[341953022,1731321044878,-500.0,0.0001479,2]
[341953023,1731321044887,-592.40496117,0.0001479,2]
[341953024,1731321044914,-487.92503883,0.0001479,2]
[341953025,1731321044923,-500.0,0.0001479,2]
[341953026,1731321044933,-500.0,0.0001479,2]
[341953027,1731321044942,-500.0,0.0001479,2]
[341953028,1731321044951,-500.0,0.0001479,2]
[341953029,1731321044960,-500.0,0.0001479,2]
[341953030,1731321044969,-500.0,0.0001479,2]
[341953031,1731321044978,-500.0,0.0001479,2]
[341953032,1731321044987,-500.0,0.0001479,2]
[341953033,1731321044996,-500.0,0.0001479,2]
[341953034,1731321045005,-500.0,0.0001479,2]
[341953035,1731321045014,-500.0,0.0001479,2]
[341953036,1731321045023,-500.0,0.0001479,2]
[341953037,1731321045032,-500.0,0.0001479,2]
[341953038,1731321045041,-500.0,0.0001479,2]
[341953039,1731321045050,-500.0,0.0001479,2]
[341953040,1731321045061,-500.0,0.0001479,2]
[341953041,1731321045071,-500.0,0.0001479,2]
[341953042,1731321045080,-546.88,0.0001479,2]
[341953043,1731321045089,-528.92,0.0001479,2]
[341953044,1731321045100,-500.0,0.0001479,2]
[341953045,1731321045110,-500.0,0.0001479,2]
[341953046,1731321045120,-500.0,0.0001479,2]
[341953047,1731321045129,-500.0,0.0001479,2]
[341953048,1731321045138,-500.0,0.0001479,2]
[341953049,1731321045147,-501.21688671,0.0001479,2]
[341953050,1731321045156,-508.96201135,0.0001479,2]
[341953051,1731321045166,-500.0,0.0001479,2]
[341953052,1731321045175,-500.0,0.0001479,2]
[341953053,1731321045185,-500.0,0.0001479,2]
[341953054,1731321045194,-500.0,0.0001479,2]
[341953055,1731321045203,-908.27,0.0001479,2]
[341953056,1731321045212,-500.0,0.0001479,2]
[341953057,1731321045221,-500.0,0.0001479,2]
[341953058,1731321045231,-500.0,0.0001479,2]
[341953059,1731321045241,-500.0,0.0001479,2]
[341953060,1731321045249,-500.0,0.0001479,2]
[341953061,1731321045259,-534.66940445,0.0001479,2]
[341953062,1731321045267,-500.0,0.0001479,2]
[341953063,1731321045277,-500.0,0.0001479,2]
[341953064,1731321045287,-500.0,0.0001479,2]
[341953065,1731321045296,-500.0,0.0001479,2]
[341953066,1731321045307,-500.0,0.0001479,2]
[341953067,1731321045316,-500.0,0.0001479,2]
[341953068,1731321045326,-502.02621234,0.0001479,2]
[341953069,1731321045335,-502.0562166,0.0001479,2]
[341953070,1731321045344,-500.0,0.0001479,2]
[341953071,1731321045354,-500.0,0.0001479,2]
[341953072,1731321045363,-500.0,0.0001479,2]
[341953073,1731321045372,-500.0,0.0001479,2]
[341953074,1731321045383,-500.0,0.0001479,2]
[341953075,1731321045393,-500.0,0.0001479,2]
[341953076,1731321045403,-617.16,0.0001479,2]
[341953077,1731321045413,-500.0,0.0001479,2]
[341953078,1731321045423,-2695.17,0.0001479,2]
[341953079,1731321045432,-500.0,0.0001479,2]
[341953080,1731321045444,-500.0,0.0001479,2]
[341953081,1731321045453,-500.0,0.0001479,2]
[341953082,1731321045463,-500.0,0.0001479,2]
[341953083,1731321045473,-190.29992765,0.0001479,2]
[341953084,1731321045482,-500.0,0.00014791,2]
[341953085,1731321045492,-500.0,0.00014791,2]
[341953086,1731321045501,-338.4226449,0.00014791,2]
[341953087,1731321045510,-500.0,0.00014791,2]
[341953088,1731321045520,-500.0,0.00014791,2]
[341953089,1731321045530,-500.0,0.00014791,2]
[341953090,1731321045539,-500.0,0.00014791,2]
[341953091,1731321045549,-500.0,0.00014791,2]
[341953092,1731321045560,-500.0,0.00014791,2]
[341953093,1731321045571,-500.0,0.00014791,2]
[341953094,1731321045580,-500.0,0.00014791,2]
[341953095,1731321045589,-623.51553295,0.00014791,2]
[341953096,1731321045598,-1535.08,0.00014791,2]
[341953097,1731321045608,-659.21,0.00014791,2]
[341953098,1731321045621,-500.0,0.00014791,2]
[341953099,1731321045630,-500.0,0.00014791,2]
[341953100,1731321045640,-500.0,0.00014791,2]
[341953101,1731321045650,-886.77,0.00014791,2]
[341953102,1731321045660,-500.0,0.00014791,2]
[341953103,1731321045671,-1618.7,0.00014791,2]
[341953104,1731321045681,-389.54383088,0.00014791,2]
[341953105,1731321045693,-500.0,0.00014791,2]
[341953106,1731321045703,-775.71,0.00014791,2]
[341953107,1731321045714,-500.0,0.00014791,2]
[341953108,1731321045724,-500.0,0.00014791,2]
[341953109,1731321045734,-500.0,0.00014791,2]
[341953110,1731321045743,-500.0,0.00014791,2]
[341953111,1731321045753,-500.0,0.00014791,2]
[341953112,1731321045763,-500.0,0.00014791,2]
[341953113,1731321045773,-500.0,0.00014791,2]
[341953114,1731321045783,-500.0,0.00014791,2]
[341953115,1731321045794,-150.0,0.00014791,2]
[341953116,1731321045804,-500.0,0.00014791,2]
[341953117,1731321045814,-500.0,0.00014791,2]
[341953118,1731321045827,-500.0,0.00014791,2]
[341953119,1731321045842,-500.0,0.00014791,2]
[341953120,1731321045851,-500.0,0.00014791,2]
[341953121,1731321045861,-1357.42,0.00014791,2]
[341953122,1731321045870,-27200.07229334,0.00014791,2]
[341953127,1731321045958,-8239.58639999,0.00014791,2]
[341953129,1731321045982,-2886.7810062,0.00014791,2]
[341953131,1731321046055,-1006.04009996,0.00014791,2]
[341953133,1731321046068,-1795.26085978,0.00014791,2]
[341953135,1731321046084,-686.50791009,0.00014791,2]
[341953196,1731321046816,-500.0,0.00014786,2]
[341953198,1731321046825,-500.0,0.00014786,2]
[341953200,1731321046835,-157.040497,0.00014786,2]
[341953202,1731321046843,-500.0,0.00014786,2]
[341953204,1731321046853,-500.0,0.00014789,2]
[341953206,1731321046862,-258.59,0.00014789,2]
[341953208,1731321046871,-500.0,0.0001479,2]
[341953210,1731321046881,-19132.30477472,0.00014791,2]
[341953212,1731321046890,-500.0,0.00014791,2]
[341953214,1731321046898,-500.0,0.00014791,2]
[341953216,1731321046908,-500.0,0.00014791,2]
[341953218,1731321046917,-500.0,0.00014791,2]
[341953220,1731321046926,-500.0,0.00014791,2]
[341953222,1731321046935,-500.0,0.00014791,2]
[341953224,1731321046945,-500.0,0.00014791,2]
[341953226,1731321046955,-500.0,0.00014791,2]
[341953228,1731321046965,-500.0,0.00014791,2]
[341953230,1731321046975,-500.0,0.00014791,2]
[341953232,1731321046985,-500.0,0.00014791,2]
[341953234,1731321046997,-500.0,0.00014791,2]
[341953236,1731321047007,-500.0,0.00014791,2]
[341953238,1731321047018,-500.0,0.00014791,2]
[341953240,1731321047027,-500.0,0.00014791,2]
[341953242,1731321047038,-500.0,0.00014791,2]
[341953244,1731321047048,-500.0,0.00014791,2]
[341953246,1731321047060,-500.0,0.00014791,2]
[341953248,1731321047071,-500.0,0.00014791,2]
[341953250,1731321047082,-500.0,0.00014791,2]
[341953252,1731321047092,-500.0,0.00014791,2]
[341953254,1731321047102,-500.0,0.00014791,2]
[341953256,1731321047112,-500.0,0.00014791,2]
[341953258,1731321047122,-500.0,0.00014791,2]
[341953260,1731321047131,-500.0,0.00014791,2]
[341953262,1731321047140,-500.0,0.00014791,2]
[341953264,1731321047150,-500.0,0.00014791,2]